bitfinex/quotes_SOLUSD_20241007
["timestamp","ask_amount","ask_price","bid_price","bid_amount"]
[1728333611067,6.8205,146.62,146.58,6.8222]
[1728333612660,6.12951667,146.63,146.6,6.8212]
[1728333612848,12.94941667,146.63,146.59,23.8755]
[1728333613755,6.8199,146.63,146.59,23.8755]
[1728333616946,0.25098,146.63,146.56,17.057]
[1728333617344,20.25098,146.63,146.56,17.057]
[1728333617543,6.8213,146.6,146.56,23.8801]
[1728333618041,20.25098,146.63,146.57,6.8226]
[1728333618242,6.8209,146.61,146.57,6.8226]
[1728333622055,6.8205,146.62,146.58,6.822]
[1728333622253,0.25098,146.66,146.6,6.8212]
[1728333622458,6.8198,146.63,146.6,8.18519594]
[1728333622963,6.8198,146.63,146.6,6.8212]
[1728333625270,6.8198,146.63,146.58,29.49523795]
[1728333625468,6.8198,146.63,146.59,6.8215]
[1728333625847,20.25098,146.66,146.59,6.8215]
[1728333626047,6.8204,146.62,146.59,6.8215]
[1728333627586,6.8204,146.62,146.58,23.8768]
[1728333634481,6.8204,146.62,146.58,17.0548]
[1728333634789,6.8204,146.62,146.59,6.8217]
[1728333638293,6.82,146.63,146.59,6.8217]
[1728333639102,6.59722349,146.62,146.59,6.8217]
[1728333639287,6.82,146.63,146.59,6.8217]
[1728333639488,6.60082039,146.62,146.59,6.8217]
[1728333639791,6.82,146.63,146.59,6.8217]
[1728333640005,6.60090926,146.62,146.59,6.8217]
[1728333640196,6.82,146.63,146.59,6.8217]
[1728333640708,6.60549488,146.62,146.59,6.8217]
[1728333640894,6.82,146.63,146.59,6.8217]
[1728333641094,6.60531522,146.62,146.59,6.8217]
[1728333641297,6.60531522,146.61,146.59,6.8217]
[1728333641499,6.82,146.63,146.59,6.8217]
[1728333641693,6.61049058,146.62,146.58,17.0548]
[1728333641886,6.8213,146.6,146.57,6.8225]
[1728333642210,6.60964615,146.59,146.57,6.8225]
[1728333642403,6.8213,146.6,146.57,6.8225]
[1728333642602,6.6158122,146.59,146.57,6.8225]
[1728333642907,6.8213,146.6,146.57,6.8225]
[1728333642908,6.61570499,146.58,146.57,6.8225]
[1728333643507,6.8213,146.6,146.56,6.8229]
[1728333643697,6.62514543,146.58,146.56,6.8229]
[1728333643894,6.62506658,146.57,146.56,6.8229]
[1728333646334,6.62506658,146.57,146.55,17.0581]
[1728333646516,6.62506658,146.56,146.55,23.8815]
[1728333646892,6.62978989,146.56,146.55,23.8815]
[1728333653331,6.8213,146.6,146.55,17.0581]
[1728333653540,6.62984976,146.59,146.56,6.823]
[1728333653717,6.62984976,146.58,146.56,6.823]
[1728333653920,6.62984976,146.57,146.56,6.823]
[1728333654942,6.62984976,146.57,146.54,15.2381]
[1728333655117,5.6453,146.63,146.51,6.9254]
[1728333655118,6.8237,146.55,146.51,6.9254]
[1728333655310,6.62745443,146.54,146.51,0.1]
[1728333655618,6.94779,146.58,146.54,6.8239]
[1728333655812,6.62783616,146.57,146.54,6.8239]
[1728333656024,6.62783616,146.56,146.54,6.8239]
[1728333656226,6.62783616,146.55,146.54,6.8239]
[1728333656745,6.62673222,146.55,146.52,6.8246]
[1728333656908,6.62673222,146.54,146.52,6.8246]
[1728333657110,6.8234,146.56,146.52,6.8246]
[1728333657111,6.62673222,146.53,146.52,6.8246]
[1728333658844,6.8234,146.56,146.52,6.8246]
[1728333659040,6.62483465,146.55,146.52,6.8246]
[1728333659244,6.62483465,146.54,146.52,6.8246]
[1728333659421,6.8234,146.56,146.52,6.8246]
[1728333659617,6.62357519,146.55,146.52,6.8246]
[1728333659844,6.8239,146.55,146.51,6.9253]
[1728333660047,6.62356484,146.54,146.51,6.9253]
[1728333660255,6.62356484,146.53,146.51,6.9253]
[1728333660546,6.8239,146.55,146.51,6.9253]
[1728333660743,6.62338913,146.54,146.51,6.9253]
[1728333661045,6.62338913,146.53,146.51,6.9253]
[1728333661219,6.8239,146.55,146.51,6.9253]
[1728333661424,6.62363035,146.54,146.51,6.9253]
[1728333661646,6.62363035,146.53,146.51,6.9253]
[1728333661848,6.8239,146.55,146.51,6.9253]
[1728333662032,6.62204881,146.54,146.51,6.9253]
[1728333662242,6.62204881,146.53,146.51,6.9253]
[1728333662441,6.8239,146.55,146.51,6.9253]
[1728333662827,6.62079036,146.54,146.51,6.9253]
[1728333663033,6.62079036,146.53,146.51,6.9253]
[1728333663243,6.8239,146.55,146.51,6.9253]
[1728333663443,6.61905526,146.54,146.51,6.9253]
[1728333663751,6.8239,146.55,146.51,6.9253]
[1728333664055,6.61881566,146.54,146.51,6.9253]
[1728333664225,6.8239,146.55,146.51,6.9253]
[1728333664430,6.61713859,146.54,146.51,6.9253]
[1728333664724,6.8239,146.55,146.51,6.9253]
[1728333664926,6.61717652,146.54,146.51,6.9253]
[1728333665131,6.8239,146.55,146.51,6.9253]
[1728333665334,6.61467652,146.54,146.51,6.9253]
[1728333665527,6.8239,146.55,146.51,6.9253]
[1728333665955,6.61476552,146.54,146.51,6.9253]
[1728333666162,6.8239,146.55,146.51,6.9253]
[1728333666331,6.61316627,146.54,146.51,6.9253]
[1728333666531,6.8239,146.55,146.51,6.9253]
[1728333666835,6.61295571,146.54,146.51,6.9253]
[1728333667037,6.8239,146.55,146.51,6.9253]
[1728333669129,6.61068342,146.54,146.51,6.9253]
[1728333669330,6.8239,146.55,146.51,6.9253]
[1728333669550,6.60977188,146.54,146.51,6.9253]
[1728333669858,6.8239,146.55,146.51,6.9253]
[1728333671051,6.94869,146.56,146.52,6.8249]
[1728333671246,6.60567411,146.55,146.53,8.1890433]
[1728333671452,20.12549,146.59,146.54,17.0598]
[1728333672054,6.8206,146.62,146.58,6.822]
[1728333672358,6.8206,146.62,146.56,28.93503795]
[1728333672359,6.8213,146.6,146.56,23.3175]
[1728333672532,6.8213,146.6,146.56,16.4946]
[1728333673366,6.8221,146.59,146.56,16.4946]
[1728333675665,6.8222,146.58,146.56,16.4946]
[1728333677451,6.8226,146.57,146.56,16.4946]
[1728333677762,6.8226,146.57,146.54,6.178]
[1728333683851,6.8223,146.58,146.54,13.002]
[1728333684044,20.25098,146.61,146.55,8.1877382]
[1728333685040,6.8217,146.59,146.55,8.1877382]
[1728333686170,6.8217,146.59,146.55,7.1877382]
[1728333686743,6.8217,146.59,146.55,5.8233]
[1728333688887,6.8214,146.6,146.56,8.18734737]
[1728333689103,6.82,146.63,146.57,12.44043795]
[1728333689408,6.82,146.63,146.59,6.8215]
[1728333689574,6.82,146.63,146.59,19.26193795]
[1728333690094,5.6453,146.67,146.6,23.776884]
[1728333690393,17.0445,146.68,146.61,6.8207]
[1728333690394,6.8192,146.65,146.61,6.8207]
[1728333690569,6.8194,146.64,146.61,6.8207]
[1728333690769,6.8194,146.64,146.6,60.09122195]
[1728333694593,17.0465,146.66,146.58,15.635]
[1728333694795,6.8208,146.61,146.58,15.635]
[1728333701996,6.8212,146.6,146.58,15.635]
[1728333704828,6.8217,146.59,146.58,15.635]
[1728333707227,0.12549,146.63,146.58,15.635]
[1728333707523,6.8214,146.6,146.58,15.635]
[1728333708812,20.0,146.63,146.58,15.635]
[1728333709630,1.18651207,146.62,146.58,15.635]
[1728333710131,6.8214,146.6,146.58,15.635]
[1728333715936,5.56932337,146.59,146.58,15.635]
[1728333716127,5.56932337,146.59,146.54,6.178]
[1728333716128,5.56932337,146.59,146.54,21.4444]
[1728333716309,5.56932337,146.58,146.54,21.4444]
[1728333716632,5.56932337,146.57,146.54,21.4444]
[1728333716829,5.56932337,146.56,146.54,21.4444]
[1728333717126,5.56939187,146.55,146.54,41.4444]
[1728333717331,5.56939187,146.55,146.54,35.2664]
[1728333718845,5.56997783,146.55,146.54,42.0904]
[1728333720735,5.56997783,146.55,146.54,65.867284]
[1728333721148,5.56997783,146.55,146.54,15.2664]
[1728333721352,5.56997783,146.55,146.51,20.1]
[1728333721528,6.8237,146.55,146.51,39.36583795]
[1728333721848,6.8237,146.55,146.51,19.36583795]
[1728333722055,5.56509696,146.54,146.51,19.36583795]
[1728333722351,6.8237,146.55,146.52,6.8249]
[1728333722553,5.56341746,146.54,146.52,6.8249]
[1728333722717,6.8237,146.55,146.52,6.8249]
[1728333722923,5.56341451,146.54,146.52,23.776884]
[1728333723130,6.8237,146.55,146.51,19.36563795]
[1728333723421,5.5616325,146.54,146.51,19.36563795]
[1728333723617,6.8237,146.55,146.51,19.36563795]
[1728333723842,5.56153136,146.54,146.51,0.1]
[1728333724046,5.56141971,146.53,146.51,0.1]
[1728333724247,6.825,146.52,146.51,0.1]
[1728333726870,6.8247,146.53,146.51,0.1]
[1728333727763,6.8242,146.54,146.51,0.1]
[1728333727962,5.55381166,146.53,146.51,0.1]
[1728333728164,6.8242,146.54,146.51,0.1]
[1728333728866,6.8245,146.53,146.51,0.1]
[1728333729768,6.825,146.52,146.51,0.1]
[1728333731043,12.37150301,146.52,146.51,0.1]
[1728333731358,6.825,146.52,146.51,0.1]
[1728333734866,27.07598,146.52,146.51,0.1]
[1728333735250,32.61447565,146.52,146.51,0.1]
[1728333737683,32.61291011,146.52,146.51,0.1]
[1728333738276,0.25098,146.51,146.46,0.4409232]
[1728333738570,6.8266,146.49,146.46,0.4409232]
[1728333747875,17.31498,146.51,146.46,0.4409232]
[1728333748057,6.8273,146.47,146.46,0.4409232]
[1728333748586,6.827,146.48,146.46,0.4409232]
[1728333750182,17.31498,146.51,146.46,0.4409232]
[1728333750376,6.8273,146.47,146.46,0.4409232]
[1728333751580,6.8269,146.48,146.46,0.4409232]
[1728333752278,26.8259,146.51,146.47,6.8272]
[1728333752480,6.8259,146.5,146.47,1.36529509]
[1728333752684,6.8259,146.5,146.47,18.43349509]
[1728333754661,20.0,146.53,146.47,18.43349509]
[1728333754984,6.8256,146.51,146.47,25.26069509]
[1728333755976,6.8259,146.5,146.47,25.26069509]
[1728333757288,0.25098,146.55,146.49,6.8262]
[1728333757489,6.8248,146.53,146.49,6.8262]
[1728333758288,6.825,146.52,146.48,6.8266]
[1728333758468,6.825,146.52,146.49,1.36507819]
[1728333759175,28.9956,146.57,146.47,44.65833795]
[1728333759375,6.8247,146.53,146.49,6.826]
[1728333761893,41.23537778,146.59,146.46,0.4409232]
[1728333761894,44.027864,146.5,146.46,0.4409232]
[1728333762101,27.07828,146.47,146.46,0.4409232]
[1728333762394,32.62490134,146.47,146.46,0.4409232]
[1728333762890,56.40178534,146.47,146.46,2.32e-05]
[1728333763305,27.08058,146.42,146.31,7.7752616]
[1728333763513,32.62720134,146.42,146.32,42.44043795]
[1728333763890,32.62720134,146.42,146.32,12.44043795]
[1728333764298,27.08058,146.42,146.32,12.44043795]
[1728333764496,32.6148723,146.42,146.32,12.44043795]
[1728333764910,32.6148723,146.42,146.33,20.0]
[1728333765304,32.6148723,146.42,146.31,7.7752616]
[1728333765305,62.8368563,146.42,146.41,0.0001]
[1728333767311,72.76611868,146.42,146.41,0.0001]
[1728333768212,79.90157638,146.42,146.41,0.0001]
[1728333768616,6.8342,146.33,146.31,0.9408616]
[1728333772827,6.8343,146.32,146.31,0.9408616]
[1728333773005,6.8343,146.32,146.31,0.4408616]
[1728333779013,20.0,146.38,146.32,23.776884]
[1728333779316,6.8334,146.34,146.31,12.88129955]
[1728333779621,6.8334,146.34,146.31,24.2177456]
[1728333784018,6.8331,146.35,146.31,31.0524456]
[1728333790847,7.13528383,146.39,146.31,24.2177456]
[1728333791042,6.8335,146.34,146.31,24.2177456]
[1728333793768,6.8343,146.32,146.31,0.4408616]
[1728333794444,6.95979,146.32,146.31,0.4408616]
[1728333794649,7.08528,146.32,146.31,0.4408616]
[1728333795159,27.08528,146.32,146.31,0.4408616]
[1728333796347,27.08528,146.32,146.21,17.1979]
[1728333796348,20.12549,146.29,146.21,17.1979]
[1728333796649,6.8368,146.27,146.22,22.3941]
[1728333797038,6.8368,146.27,146.23,6.8384]
[1728333797645,6.8368,146.27,146.24,23.776884]
[1728333800781,6.8368,146.27,146.23,6.8384]
[1728333802953,6.8368,146.27,146.22,34.83453795]
[1728333804472,6.8368,146.27,146.22,22.3941]
[1728333804770,6.8368,146.27,146.22,34.83453795]
[1728333805272,6.8368,146.27,146.23,44.42311511]
[1728333806263,6.8363,146.28,146.23,44.42311511]
[1728333806673,6.8363,146.28,146.23,43.05572195]
[1728333807246,6.8363,146.28,146.23,36.21732195]
[1728333807469,6.8363,146.28,146.24,6.838]
[1728333810859,6.8363,146.28,146.25,23.776884]
[1728333811458,5.53843305,146.27,146.25,23.776884]
[1728333811776,6.8358,146.29,146.25,30.614384]
[1728333812082,5.53931126,146.28,146.26,19.27743795]
[1728333812273,6.8354,146.3,146.27,1.36714417]
[1728333812452,5.54049217,146.29,146.27,1.36714417]
[1728333812656,6.8354,146.3,146.27,1.36714417]
[1728333812953,5.54057515,146.29,146.27,1.36714417]
[1728333813153,6.8354,146.3,146.27,1.36714417]
[1728333813466,5.54096847,146.29,146.27,1.36714417]
[1728333813665,6.8354,146.3,146.27,1.36714417]
[1728333813866,5.54097175,146.29,146.27,1.36714417]
[1728333814073,6.8354,146.3,146.27,1.36714417]
[1728333814371,5.54104801,146.29,146.27,1.36714417]
[1728333814549,6.8354,146.3,146.27,1.36714417]
[1728333814751,5.54121757,146.29,146.27,1.36714417]
[1728333815042,6.8354,146.3,146.27,1.36714417]
[1728333815272,5.54117708,146.29,146.27,1.36714417]
[1728333815474,6.8354,146.3,146.27,1.36714417]
[1728333815646,12.37696016,146.29,146.27,1.36714417]
[1728333815965,6.8357,146.29,146.27,1.36714417]
[1728333817775,6.8354,146.3,146.27,1.36714417]
[1728333819678,6.8349,146.31,146.27,30.613384]
[1728333819847,5.54183247,146.3,146.27,30.613384]
[1728333820052,6.8349,146.31,146.27,30.613384]
[1728333820248,20.0,146.32,146.27,23.776884]
[1728333820554,6.8352,146.3,146.27,23.776884]
[1728333821170,17.0855,146.33,146.25,17.0938]
[1728333821380,6.8366,146.27,146.25,23.776884]
[1728333821551,6.8366,146.27,146.23,12.44043795]
[1728333822062,6.8366,146.27,146.23,19.27843795]
[1728333823687,6.8366,146.27,146.24,23.776884]
[1728333823975,17.0872,146.31,146.23,19.27843795]
[1728333823976,6.8371,146.26,146.23,19.27843795]
[1728333824366,6.8371,146.26,146.23,23.776884]
[1728333824966,6.8381,146.24,146.22,15.5553]
[1728333825176,6.8381,146.24,146.21,0.1]
[1728333825977,6.8377,146.25,146.21,6.9394]
[1728333827885,6.8374,146.26,146.22,20.64686494]
[1728333832090,6.8374,146.26,146.22,19.27933795]
[1728333832480,6.8374,146.26,146.22,6.8389]
[1728333832787,6.8376,146.25,146.22,6.8389]
[1728333833364,6.8376,146.25,146.21,36.47803795]
[1728333836480,6.8376,146.25,146.22,8.20650921]
[1728333836788,6.8376,146.25,146.22,6.839]
[1728333838800,6.8376,146.25,146.23,1.36750821]
[1728333838989,6.8376,146.25,146.22,6.839]
[1728333840798,6.8376,146.25,146.21,36.47773795]
[1728333841501,6.8376,146.25,146.22,6.8389]
[1728333841896,6.8376,146.25,146.21,36.47793795]
[1728333842200,6.8376,146.25,146.22,6.8389]
[1728333842712,6.8376,146.25,146.23,1.36750667]
[1728333843599,20.0,146.28,146.23,1.36750667]
[1728333843806,5.55702159,146.27,146.25,12.44043795]
[1728333844110,6.8363,146.28,146.25,20.64522816]
[1728333844410,5.557756,146.27,146.25,13.80772816]
[1728333844581,6.8363,146.28,146.25,1.36729021]
[1728333844780,5.55785228,146.27,146.25,8.20479021]
[1728333844981,6.8363,146.28,146.25,8.20479021]
[1728333845390,7.13785303,146.27,146.25,1.36729021]
[1728333845589,7.13785303,146.27,146.24,19.27813795]
[1728333845791,7.13785303,146.27,146.25,1.36730963]
[1728333847513,7.13785303,146.27,146.24,6.8377]
[1728333853418,13.97455303,146.27,146.24,6.8377]
[1728333854003,13.97455303,146.27,146.22,6.8388]
[1728333854004,6.8376,146.25,146.22,6.8388]
[1728333854205,7.13785303,146.27,146.21,0.1]
[1728333854524,11.56996319,146.26,146.21,6.9394]
[1728333854720,11.56996319,146.25,146.21,12.54043795]
[1728333855016,6.8376,146.25,146.21,36.47803795]
[1728333857031,6.8376,146.25,146.22,1.36755351]
[1728333857530,6.8376,146.25,146.22,8.20645351]
[1728333857706,7.13785303,146.27,146.22,8.20645351]
[1728333857905,12.39246961,146.26,146.22,6.8389]
[1728333858121,5.55526961,146.25,146.23,1.36753715]
[1728333858323,6.8372,146.26,146.23,13.8079751]
[1728333858525,5.55575307,146.25,146.23,13.8079751]
[1728333858715,6.8372,146.26,146.23,13.8079751]
[1728333861234,6.8372,146.26,146.23,12.44043795]
[1728333861532,6.8372,146.26,146.23,13.80792236]
[1728333862427,6.8372,146.26,146.23,19.27893795]
[1728333862930,5.46262084,146.25,146.23,6.8385]
[1728333863226,6.839,146.22,146.21,0.1]
[1728333863425,12.30162084,146.22,146.21,0.1]
[1728333863931,19.44406504,146.22,146.21,0.1]
[1728333864107,32.30162084,146.22,146.21,0.1]
[1728333864303,17.0989,146.21,146.16,0.8408616]
[1728333864605,14.45295731,146.22,146.16,0.8408616]
[1728333864815,6.841,146.18,146.16,0.8408616]
[1728333865220,6.8404,146.19,146.16,0.8408616]
[1728333865428,6.1271,146.22,146.16,0.8408616]
[1728333865612,6.8409,146.18,146.16,0.8408616]
[1728333866207,6.8413,146.17,146.16,0.8408616]
[1728333866728,6.8409,146.18,146.16,0.8408616]
[1728333867032,5.45615358,146.17,146.16,0.8408616]
[1728333867823,12.29745358,146.17,146.16,0.8408616]
[1728333870312,6.8413,146.17,146.16,0.8408616]
[1728333870813,12.51835158,146.17,146.16,0.8408616]
[1728333871440,6.8413,146.17,146.16,0.8408616]
[1728333875235,6.96679,146.17,146.16,0.8408616]
[1728333877233,6.8413,146.17,146.16,0.8408616]
[1728333877749,40.8288,146.28,146.18,6.8407]
[1728333877958,6.8391,146.22,146.18,6.8407]
[1728333878135,6.8391,146.22,146.17,6.8412]
[1728333878340,6.8396,146.21,146.17,6.8412]
[1728333880332,6.8391,146.22,146.17,8.20922721]
[1728333881559,44.027864,146.26,146.16,16.9582616]
[1728333881858,6.8409,146.18,146.16,16.9582616]
[1728333883153,0.12549,146.22,146.16,16.9582616]
[1728333883354,0.12549,146.22,146.16,0.8408616]
[1728333883355,6.8413,146.17,146.16,0.8408616]
[1728333904608,12.25433284,146.17,146.16,0.8408616]
[1728333906997,6.8413,146.17,146.16,0.8408616]
[1728333907183,12.25559966,146.17,146.16,0.8408616]
[1728333908401,5.41429966,146.17,146.16,0.8408616]
[1728333908781,5.41429966,146.17,146.16,16.6010616]
[1728333909703,12.25559966,146.17,146.16,16.6010616]
[1728333910981,6.8413,146.17,146.16,16.6010616]
[1728333911296,12.27729803,146.17,146.16,16.6010616]
[1728333913513,2.74296305,146.18,146.17,30.151484]
[1728333913807,34.1829,146.28,146.17,6.3746]
[1728333914011,15.525,146.26,146.17,6.3746]
[1728333914214,21.8622,146.26,146.16,16.6010616]
[1728333914387,21.8622,146.26,146.16,0.8408616]
[1728333914699,6.8413,146.17,146.16,0.8408616]
[1728333914897,6.8413,146.17,146.16,30.8408616]
[1728333915910,6.8413,146.17,146.16,0.8408616]
[1728333929132,26.8413,146.17,146.16,6.16e-05]
[1728333929428,6.8436,146.12,146.11,0.1]
[1728333932337,17.1069,146.14,146.02,15.3623]
[1728333932338,6.8467,146.06,146.02,22.2106]
[1728333932636,6.347,146.05,146.02,15.3623]
[1728333934236,17.1118,146.1,146.02,15.3623]
[1728333934441,6.8465,146.06,146.02,22.2105]
[1728333934837,17.1118,146.1,146.02,22.2105]
[1728333935020,6.8461,146.07,146.02,22.2105]
[1728333936245,6.8456,146.08,146.03,31.99387714]
[1728333938321,6.8456,146.08,146.03,30.624684]
[1728333938730,6.8461,146.07,146.03,30.624684]
[1728333939648,6.8466,146.06,146.02,39.3311]
[1728333945236,6.847,146.05,146.02,32.4829]
[1728333945545,6.847,146.05,146.02,15.3623]
[1728333947359,6.847,146.05,146.02,22.2105]
[1728333947856,41.36248785,146.12,146.02,15.3623]
[1728333948062,6.8475,146.04,146.02,15.3623]
[1728333948264,6.8475,146.04,146.02,16.73162679]
[1728333948557,20.25098,146.11,146.02,16.73162679]
[1728333948745,6.8471,146.05,146.02,16.73162679]
[1728333949556,6.8471,146.05,146.02,15.3623]
[1728333949765,6.8466,146.06,146.03,1.36931338]
[1728333950152,6.8466,146.06,146.03,8.21711338]
[1728333950354,6.8466,146.06,146.02,32.4829]
[1728333950660,6.8466,146.06,146.02,39.331]
[1728333951071,17.1136,146.09,146.02,15.3623]
[1728333951273,6.8473,146.05,146.02,15.3623]
[1728333956556,6.8466,146.06,146.03,1.36936422]
[1728333957781,17.1136,146.09,146.03,1.36936422]
[1728333957954,17.1136,146.09,146.01,17.9625616]
[1728333957955,6.8483,146.02,146.01,0.8408616]
[1728333960889,16.5257,146.07,146.01,0.8408616]
[1728333961197,6.8483,146.02,146.01,0.8408616]
[1728333962701,6.8479,146.03,146.01,0.8408616]
[1728333963079,16.5257,146.07,146.01,9.05921668]
[1728333963285,6.8466,146.06,146.01,9.05921668]
[1728333963484,6.6041,146.08,146.01,9.05921668]
[1728333963672,6.847,146.05,146.01,9.05921668]
[1728333963871,6.8464,146.07,146.02,6.848]
[1728333964379,6.8451,146.09,146.04,6.8473]
[1728333965175,6.8451,146.09,146.05,8.21598365]
[1728333966501,17.1093,146.12,146.05,6.8468]
[1728333966799,6.8452,146.09,146.06,1.36906797]
[1728333967977,1.19083745,146.08,146.06,1.36906797]
[1728333968187,1.19083745,146.08,146.05,6.8468]
[1728333970303,6.8452,146.09,146.05,6.8468]
[1728333970604,6.8443,146.11,146.07,6.8457]
[1728333970905,6.8443,146.11,146.08,1.36896338]
[1728333971096,6.8443,146.11,146.06,17.1157]
[1728333971097,6.845,146.09,146.06,17.1157]
[1728333971295,6.8452,146.09,146.04,6.8469]
[1728333972101,6.8452,146.09,146.05,6.8468]
[1728333972798,6.8452,146.09,146.06,1.36906602]
[1728333973311,6.8452,146.09,146.05,6.8468]
[1728333976505,6.8443,146.11,146.07,6.8455]
[1728333977516,6.8443,146.11,146.08,1.36886934]
[1728333978908,32.4881,146.17,146.09,6.8447]
[1728333979210,6.8431,146.14,146.11,6.8441]
[1728333980318,6.8431,146.14,146.1,1.36860823]
[1728333980319,6.8431,146.14,146.1,6.8445]
[1728333984916,6.8431,146.14,146.09,17.1126]
[1728333985217,6.8431,146.14,146.11,8.21262999]
[1728333985821,6.8431,146.14,146.12,1.36853479]
[1728333986609,6.8424,146.15,146.12,1.36853479]
[1728333986923,6.8419,146.16,146.12,8.21203479]
[1728333987149,15.7544,146.21,146.13,1.36838458]
[1728333987415,15.7544,146.21,146.13,39.6375]
[1728333987416,6.8413,146.17,146.13,39.6375]
[1728333987615,13.97040683,146.17,146.13,39.6375]
[1728333987915,6.8413,146.17,146.13,39.6375]
[1728333988095,6.8418,146.16,146.13,32.7945]
[1728333988422,6.8428,146.14,146.1,23.9548]
[1728333989008,6.8424,146.15,146.11,6.844]
[1728333990937,6.8415,146.17,146.13,6.8431]
[1728333991127,20.0,146.19,146.13,6.8431]
[1728333991436,6.8414,146.17,146.13,6.8431]
[1728333991826,15.7544,146.21,146.12,40.885784]
[1728333992039,6.8409,146.18,146.14,6.8424]
[1728333993021,6.8407,146.19,146.15,8.21033215]
[1728333993537,6.84,146.2,146.16,6.8415]
[1728333993835,6.84,146.2,146.17,1.36795941]
[1728333994443,6.8396,146.21,146.17,6.8409]
[1728333995918,20.0,146.24,146.16,40.881184]
[1728333996129,6.8391,146.22,146.16,40.881184]
[1728333996335,6.8394,146.21,146.17,6.8411]
[1728333996536,6.8404,146.19,146.15,22.9616]
[1728333997544,6.8403,146.2,146.16,30.618584]
[1728334001061,7.14102913,146.26,146.16,23.776884]
[1728334001252,6.8382,146.24,146.2,23.776884]
[1728334001429,6.8382,146.24,146.21,1.36761126]
[1728334002051,6.8371,146.26,146.22,1.36759686]
[1728334002221,6.8371,146.26,146.22,8.20629686]
[1728334002423,7.12944048,146.29,146.22,1.36759686]
[1728334002424,20.0,146.28,146.22,1.36759686]
[1728334002632,6.8367,146.27,146.23,30.615284]
[1728334004360,6.8365,146.28,146.24,8.20523901]
[1728334004772,6.8366,146.27,146.23,23.9344]
[1728334005251,7.13906658,146.31,146.24,30.431084]
[1728334005561,6.8345,146.32,146.27,6.8363]
[1728334005762,6.8345,146.32,146.28,23.776884]
[1728334006264,6.8345,146.32,146.28,30.612884]
[1728334006862,6.8345,146.32,146.28,23.776884]
[1728334007044,6.8352,146.3,146.27,23.776884]
[1728334007376,6.8367,146.27,146.24,23.7486]
[1728334007565,6.8362,146.28,146.24,23.7486]
[1728334008363,6.8362,146.28,146.24,30.5866]
[1728334008864,20.0,146.31,146.25,25.14404485]
[1728334009047,6.8353,146.3,146.26,6.837]
[1728334009368,20.0,146.34,146.27,8.20332608]
[1728334009842,6.8344,146.32,146.27,8.20332608]
[1728334010560,6.8344,146.32,146.28,30.738474]
[1728334011062,6.8339,146.33,146.29,8.20230394]
[1728334012469,6.8339,146.33,146.3,23.776884]
[1728334013172,6.8339,146.33,146.31,1.36668509]
[1728334013670,6.8339,146.33,146.3,23.776884]
[1728334016757,6.8339,146.33,146.31,1.36668488]
[1728334017251,6.8339,146.33,146.3,23.776884]
[1728334017468,6.8339,146.33,146.31,1.36668315]
[1728334017663,6.8335,146.34,146.31,1.36668315]
[1728334018575,6.8331,146.35,146.31,1.36668315]
[1728334018962,6.8335,146.34,146.31,1.36668315]
[1728334021854,7.12577588,146.36,146.32,23.776884]
[1728334022173,7.12577588,146.36,146.33,1.3664917]
[1728334022401,6.8329,146.35,146.33,1.3664917]
[1728334022554,7.12577588,146.36,146.3,30.366484]
[1728334022765,6.8339,146.33,146.3,30.366484]
[1728334023068,6.8343,146.32,146.3,30.366484]
[1728334023875,6.834,146.33,146.3,30.366484]
[1728334024467,17.0826,146.35,146.28,17.0902]
[1728334024780,6.8348,146.31,146.28,17.0902]
[1728334025676,6.8344,146.32,146.28,23.9263]
[1728334026188,6.8348,146.31,146.28,17.0902]
[1728334026772,7.12577588,146.36,146.29,1.36686493]
[1728334027083,7.12577588,146.36,146.3,23.776884]
[1728334027280,6.8335,146.34,146.31,1.36665562]
[1728334029686,6.8335,146.34,146.3,30.611984]
[1728334030595,7.12577588,146.36,146.31,8.01244205]
[1728334030784,7.12577588,146.36,146.32,23.776884]